fUSD/lending_fUSD_20260126
["ID","MTS","AMOUNT","RATE_DAILY","PERIOD"]
[403629441,1769431841978,-500.0,0.00015214,2]
[403629443,1769431841987,-500.0,0.00015214,2]
[403629445,1769431841996,-500.0,0.00015214,2]
[403629447,1769431842006,-500.0,0.00015214,2]
[403629449,1769431842016,-500.0,0.00015214,2]
[403629451,1769431842025,-500.0,0.00015214,2]
[403629453,1769431842035,-500.0,0.00015214,2]
[403629455,1769431842045,-512.6177601,0.00015214,2]
[403629457,1769431842055,-500.0,0.00015214,2]
[403629459,1769431842064,-500.0,0.00015214,2]
[403629461,1769431842073,-500.0,0.00015214,2]
[403629463,1769431842082,-500.0,0.00015214,2]
[403629465,1769431842091,-500.0,0.00015214,2]
[403629467,1769431842101,-500.0,0.00015214,2]
[403629469,1769431842110,-500.0,0.00015214,2]
[403629471,1769431842119,-500.0,0.00015214,2]
[403629473,1769431842128,-500.0,0.00015214,2]
[403629475,1769431842137,-500.0,0.00015214,2]
[403629477,1769431842146,-500.0,0.00015214,2]
[403629479,1769431842155,-500.0,0.00015214,2]
[403629481,1769431842164,-500.0,0.00015214,2]
[403629483,1769431842175,-500.0,0.00015214,2]
[403629485,1769431842184,-500.0,0.00015214,2]
[403629487,1769431842193,-500.0,0.00015214,2]
[403629489,1769431842202,-500.0,0.00015214,2]
[403629491,1769431842211,-500.0,0.00015214,2]
[403629493,1769431842220,-500.0,0.00015214,2]
[403629495,1769431842230,-500.0,0.00015214,2]
[403629497,1769431842240,-500.0,0.00015214,2]
[403629499,1769431842249,-500.0,0.00015214,2]
[403629501,1769431842258,-500.0,0.00015214,2]
[403629503,1769431842267,-500.0,0.00015214,2]
[403629505,1769431842276,-500.0,0.00015214,2]
[403629507,1769431842285,-500.0,0.00015214,2]
[403629509,1769431842294,-500.0,0.00015214,2]
[403629511,1769431842303,-152.86742029,0.00015214,2]
[403629513,1769431842313,-588.48819428,0.00015214,2]
[403629515,1769431842323,-500.0,0.00015214,2]
[403629517,1769431842332,-500.0,0.00015214,2]
[403629519,1769431842341,-500.0,0.00015214,2]
[403629521,1769431842352,-500.0,0.00015214,2]
[403629523,1769431842361,-507.28795943,0.00015214,2]
[403629525,1769431842371,-500.0,0.00015214,2]
[403629527,1769431842380,-631.62876528,0.00015214,2]
[403629529,1769431842389,-500.0,0.00015214,2]
[403629531,1769431842399,-500.0,0.00015214,2]
[403629533,1769431842408,-500.0,0.00015214,2]
[403629535,1769431842421,-500.0,0.00015214,2]
[403629537,1769431842432,-506.5749784,0.00015214,2]
[403629539,1769431842444,-500.0,0.00015214,2]
[403629541,1769431842453,-500.0,0.00015214,2]
[403629543,1769431842462,-509.94585687,0.00015214,2]
[403629545,1769431842471,-500.0,0.00015214,2]
[403629547,1769431842482,-500.0,0.00015214,2]
[403629550,1769431842492,-503.74300239,0.00015214,2]
[403629552,1769431842501,-500.0,0.00015214,2]
[403629554,1769431842512,-500.0,0.00015214,2]
[403629555,1769431842523,-500.0,0.00015214,2]
[403629557,1769431842532,-500.0,0.00015214,2]
[403629559,1769431842541,-500.0,0.00015214,2]
[403629561,1769431842550,-500.0,0.00015214,2]
[403629563,1769431842559,-500.0,0.00015214,2]
[403629565,1769431842569,-500.0,0.00015214,2]
[403629567,1769431842578,-500.0,0.00015214,2]
[403629569,1769431842588,-500.0,0.00015214,2]
[403629571,1769431842598,-500.0,0.00015214,2]
[403629573,1769431842607,-500.0,0.00015214,2]
[403629575,1769431842616,-17787.79520565,0.0001523,2]
[403629577,1769431842625,-450.0,0.00015291,2]
[403629579,1769431842635,-11680.82954706,0.00015297,2]
[403629581,1769431842644,-575.87084624,0.00015578,2]
[403629583,1769431842654,-823.0,0.00015584,2]
[403629585,1769431842663,-3292.0,0.00015668,2]
[403629587,1769431842672,-17787.79520565,0.00015675,2]
[403629589,1769431842681,-151.89329206,0.00015708,2]
[403629591,1769431842691,-11680.82954706,0.00015731,2]
[403629593,1769431842700,-1688.63,0.00015753,2]
[403629595,1769431842709,-657.48098806,0.00015811,2]
[403629597,1769431842718,-166.66,0.00015873,2]
[403629599,1769431842728,-2682.49681802,0.0001596,2]
[403629601,1769431842737,-3000.0,0.00016,2]
[403629603,1769431842746,-2000.0,0.00016,2]
[403629605,1769431842755,-162.31226797,0.00016,2]
[403629607,1769431842764,-575.87084624,0.00016043,2]
[403629609,1769431842773,-150.0,0.00016086,2]
[403629611,1769431842782,-17787.79520565,0.0001612,2]
[403629613,1769431842792,-11680.82954706,0.00016164,2]
[403629615,1769431842801,-250.0,0.00016341,2]
[403629617,1769431842810,-500.0,0.00016352,2]
[403629619,1769431842820,-349.16,0.00016369,2]
[403629621,1769431842830,-1000.0,0.00016399,2]
[403629623,1769431842839,-163.0,0.000164,2]
[403629625,1769431842848,-500.0,0.00016437,2]
[403629627,1769431842857,-226.45406271,0.00016437,2]
[403629629,1769431842867,-500.0,0.00016437,2]
[403629630,1769431842876,-500.0,0.00016437,2]
[403629631,1769431842885,-500.0,0.00016437,2]
[403629632,1769431842894,-500.0,0.00016437,2]
[403629633,1769431842904,-500.0,0.00016437,2]
[403629634,1769431842914,-500.0,0.00016437,2]
[403629635,1769431842923,-500.0,0.00016437,2]
[403629663,1769431843219,-500.0,0.00016437,2]
[403629665,1769431843228,-500.0,0.00016437,2]
[403629669,1769431843238,-175.39278884,0.00016437,2]
[403629671,1769431843247,-500.0,0.00016438,2]
[403629672,1769431843256,-500.0,0.00016438,2]
[403629675,1769431843266,-500.0,0.00016438,2]
[403629677,1769431843275,-500.0,0.00016438,2]
[403629679,1769431843284,-504.38275223,0.00016438,2]
[403629681,1769431843294,-300.0,0.00016438,2]
[403629682,1769431843303,-300.0,0.00016438,2]
[403629685,1769431843312,-300.0,0.00016438,2]
[403629686,1769431843322,-300.0,0.00016438,2]
[403629688,1769431843331,-300.0,0.00016438,2]
[403629690,1769431843340,-300.0,0.00016438,2]
[403629692,1769431843350,-300.0,0.00016438,2]
[403629694,1769431843359,-152.52,0.00016438,2]
[403629696,1769431843368,-500.0,0.00016438,2]
[403629699,1769431843378,-150.0,0.00016438,2]
[403629701,1769431843387,-500.0,0.00016438,2]
[403629703,1769431843397,-500.0,0.00016438,2]
[403629704,1769431843406,-500.0,0.00016438,2]
[403629707,1769431843416,-500.0,0.00016438,2]
[403629708,1769431843425,-500.0,0.00016438,2]
[403629710,1769431843438,-1688.63,0.00016438,2]
[403629712,1769431843447,-165.27,0.0001644,2]
[403629714,1769431843457,-575.87084624,0.00016507,2]
[403629716,1769431843466,-657.48098806,0.00016507,2]
[403629718,1769431843475,-166.66,0.00016528,2]
[403629720,1769431843484,-17787.79520565,0.00016565,2]
[403629722,1769431843493,-11680.82954706,0.00016598,2]
[403629724,1769431843503,-150.0,0.000167,2]
[403629726,1769431843511,-163.0,0.0001672,2]
[403629728,1769431843520,-1086.0,0.0001672,2]
[403629730,1769431843529,-479.09,0.00016793,2]
[403629732,1769431843539,-293.06889068,0.00016856,2]
[403629734,1769431843548,-500.0,0.00016884,2]
[403629736,1769431843557,-500.0,0.00016884,2]
[403629738,1769431843567,-500.0,0.00016884,2]
[403629740,1769431843577,-500.0,0.00016884,2]
[403629742,1769431843586,-500.0,0.00016884,2]
[403629744,1769431843595,-500.0,0.00016884,2]
[403629746,1769431843604,-575.87084624,0.00016971,2]
[403629748,1769431843614,-200.18353258,0.00016983,2]
[403629750,1769431843623,-500.0,0.00016998,2]
[403629752,1769431843632,-500.0,0.00016998,2]
[403629754,1769431843642,-500.0,0.00016998,2]
[403629756,1769431843651,-500.0,0.00016999,2]
[403629758,1769431843660,-500.0,0.00016999,2]
[403629760,1769431843669,-500.0,0.00016999,2]
[403629762,1769431843679,-500.0,0.00016999,2]
[403629764,1769431843687,-500.0,0.00016999,2]
[403629765,1769431843697,-646.08605547,0.00016999,2]
[403629767,1769431843706,-500.0,0.00016999,2]
[403629770,1769431843716,-251.49925824,0.00017,4]
[403629771,1769431843726,-250.0,0.00017,2]
[403629774,1769431843736,-17787.79520565,0.0001701,2]
[403629775,1769431843745,-11680.82954706,0.00017032,2]
[403629777,1769431843754,-1225.78,0.00017041,2]
[403629779,1769431843763,-549.27828535,0.00017097,2]
[403629782,1769431843773,-500.0,0.00017097,2]
[403629784,1769431843782,-500.0,0.00017097,2]
[403629786,1769431843791,-500.0,0.00017097,2]
[403629788,1769431843800,-500.0,0.00017097,2]
[403629790,1769431843809,-500.0,0.00017097,2]
[403629792,1769431843819,-500.0,0.00017097,2]
[403629794,1769431843828,-500.0,0.00017097,2]
[403629796,1769431843836,-500.0,0.00017097,2]
[403629798,1769431843849,-500.0,0.00017098,2]
[403629800,1769431843858,-500.0,0.00017098,2]
[403629802,1769431843867,-500.0,0.00017098,2]
[403629804,1769431843876,-500.0,0.00017098,2]
[403629806,1769431843885,-500.0,0.00017098,2]
[403629808,1769431843894,-500.0,0.00017098,2]
[403629810,1769431843903,-500.0,0.00017098,2]
[403629812,1769431843912,-151.2290817,0.00017099,2]
[403629814,1769431843921,-578.20924308,0.00017099,2]
[403629816,1769431843930,-1000.0,0.00017099,2]
[403629818,1769431843939,-250.0,0.00017099,2]
[403629820,1769431843948,-854.2589148,0.00017099,2]
[403629822,1769431843958,-1000.0,0.00017099,2]
[403629824,1769431843967,-250.0,0.00017099,2]
[403629826,1769431843976,-1000.0,0.00017099,2]
[403629828,1769431843985,-250.0,0.00017099,2]
[403629830,1769431843994,-1000.0,0.00017099,2]
[403629832,1769431844002,-250.0,0.00017099,2]
[403629834,1769431844011,-500.0,0.00017099,2]
[403629836,1769431844020,-1000.0,0.00017099,2]
[403629838,1769431844029,-250.0,0.00017099,2]
[403629839,1769431844038,-500.0,0.00017099,2]
[403629841,1769431844047,-1000.0,0.00017099,2]
[403629843,1769431844056,-250.0,0.00017099,2]
[403629845,1769431844065,-250.0,0.00017099,2]
[403629847,1769431844074,-500.0,0.00017099,2]
[403629849,1769431844083,-616.92179416,0.00017099,2]
[403629851,1769431844092,-250.0,0.00017099,2]
[403629853,1769431844101,-250.0,0.00017099,2]
[403629855,1769431844110,-322.6107,0.00017099,2]
[403629857,1769431844119,-500.0,0.00017099,2]
[403629859,1769431844128,-250.0,0.00017099,2]
[403629861,1769431844137,-250.0,0.00017099,2]
[403629863,1769431844146,-500.0,0.00017099,2]
[403629865,1769431844155,-250.0,0.00017099,2]
[403629867,1769431844163,-250.0,0.00017099,2]
[403629869,1769431844172,-250.0,0.00017099,2]
[403629871,1769431844181,-500.0,0.00017099,2]
[403629873,1769431844191,-250.0,0.00017099,2]
[403629875,1769431844199,-151.0,0.00017099,2]
[403629877,1769431844208,-250.0,0.00017099,2]
[403629879,1769431844217,-500.0,0.00017099,2]
[403629881,1769431844226,-250.0,0.00017099,2]
[403629883,1769431844235,-500.0,0.00017099,2]
[403629885,1769431844244,-250.0,0.00017099,2]
[403629887,1769431844252,-500.0,0.00017099,2]
[403629889,1769431844262,-209.40437684,0.00017099,2]
[403629891,1769431844271,-250.0,0.00017099,2]
[403629893,1769431844280,-500.0,0.00017099,2]
[403629895,1769431844289,-250.0,0.00017099,2]
[403629897,1769431844298,-500.0,0.00017099,2]
[403629898,1769431844307,-721.12765535,0.00017099,2]
[403629901,1769431844316,-250.0,0.00017099,2]
[403629902,1769431844325,-385.99066242,0.00017099,2]
[403629905,1769431844335,-250.0,0.00017099,2]
[403629907,1769431844344,-883.89552354,0.00017099,2]
[403629909,1769431844353,-174.61919141,0.00017099,2]
[403629911,1769431844362,-250.0,0.00017099,2]
[403629913,1769431844371,-250.0,0.00017099,2]
[403629915,1769431844380,-250.0,0.00017099,2]
[403629917,1769431844389,-211.39174164,0.00017099,2]
[403629919,1769431844398,-250.0,0.00017099,2]
[403629921,1769431844407,-250.0,0.00017099,2]
[403629922,1769431844417,-250.0,0.00017099,2]
[403629924,1769431844426,-250.0,0.00017099,2]
[403629927,1769431844440,-250.0,0.00017099,2]
[403629929,1769431844449,-250.0,0.00017099,2]
[403629931,1769431844459,-250.0,0.00017099,2]
[403629933,1769431844468,-250.0,0.00017099,2]
[403629935,1769431844477,-250.0,0.00017099,2]
[403629936,1769431844487,-250.0,0.00017099,2]
[403629939,1769431844496,-250.0,0.00017099,2]
[403629941,1769431844506,-250.0,0.00017099,2]
[403629943,1769431844518,-250.0,0.00017099,2]
[403629944,1769431844527,-250.0,0.00017099,2]
[403629947,1769431844537,-250.0,0.00017099,2]
[403629949,1769431844546,-250.0,0.00017099,2]
[403629951,1769431844556,-151.0,0.00017099,2]
[403629953,1769431844565,-250.0,0.00017099,2]
[403629955,1769431844575,-250.0,0.00017099,2]
[403629957,1769431844585,-250.0,0.00017099,2]
[403629959,1769431844594,-2349.0,0.00017099,2]
[403629961,1769431844603,-250.0,0.00017099,2]
[403629962,1769431844613,-250.0,0.00017099,2]
[403629964,1769431844622,-250.0,0.00017099,2]
[403629966,1769431844631,-250.0,0.00017099,2]
[403629968,1769431844641,-250.0,0.00017099,2]
[403629969,1769431844651,-250.0,0.00017099,2]
[403629971,1769431844660,-250.0,0.00017099,2]
[403629973,1769431844669,-250.0,0.00017099,2]
[403629975,1769431844679,-250.0,0.00017099,2]
[403629977,1769431844689,-250.0,0.00017099,2]
[403629979,1769431844699,-250.0,0.00017099,2]
[403629981,1769431844709,-250.0,0.00017099,2]
[403629982,1769431844719,-250.0,0.00017099,2]
[403629984,1769431844728,-250.0,0.00017099,2]
[403629986,1769431844738,-250.0,0.00017099,2]
[403629988,1769431844748,-250.0,0.00017099,2]
[403629990,1769431844757,-276.40674304,0.00017099,2]
[403629992,1769431844767,-212.0,0.00017112,2]
[403629993,1769431844777,-172.23,0.00017178,2]
[403629995,1769431844787,-1117.74,0.00017178,2]
[403629997,1769431844796,-1231.6,0.00017178,2]
[403629999,1769431844805,-150.0,0.00017178,2]
[403630000,1769431844814,-172.23,0.00017178,2]
[403630002,1769431844825,-468.76,0.00017178,2]
[403630004,1769431844834,-150.0,0.00017178,2]
[403630006,1769431844843,-172.23,0.00017178,2]
[403630008,1769431844852,-150.0,0.00017178,2]
[403630009,1769431844862,-150.0,0.00017178,2]
[403630011,1769431844871,-172.23,0.00017178,2]
[403630013,1769431844880,-166.66,0.00017183,2]
[403630015,1769431844889,-657.48098806,0.00017204,2]
[403630017,1769431844899,-4609.0,0.00017235,2]
[403630018,1769431844908,-158.77275078,0.00017255,2]
[403630020,1769431844918,-1086.0,0.0001736,2]
[403630022,1769431844927,-500.0,0.00017387,2]
[403630024,1769431844937,-500.0,0.00017387,2]
[403630026,1769431844947,-500.0,0.00017387,2]
[403630028,1769431844956,-500.0,0.00017387,2]
[403630029,1769431844966,-500.0,0.00017387,2]
[403630031,1769431844975,-500.0,0.00017387,2]
[403630033,1769431844984,-500.0,0.00017423,2]
[403630035,1769431844993,-455.72018722,0.00017423,2]
[403630037,1769431845002,-500.0,0.00017423,2]
[403630038,1769431845011,-535.26115064,0.00017423,2]
[403630040,1769431845020,-500.0,0.00017423,2]
[403630042,1769431845033,-500.0,0.00017423,2]
[403630044,1769431845043,-500.0,0.00017423,2]
[403630046,1769431845052,-500.0,0.00017423,2]
[403630048,1769431845063,-504.28373524,0.00017423,2]
[403630050,1769431845073,-500.0,0.00017423,2]
[403630051,1769431845081,-500.0,0.00017423,2]
[403630053,1769431845090,-500.0,0.00017423,2]
[403630055,1769431845100,-500.0,0.00017423,2]
[403630057,1769431845109,-423.91865355,0.00017423,2]
[403630058,1769431845117,-500.0,0.00017423,2]
[403630060,1769431845127,-500.0,0.00017423,2]
[403630062,1769431845136,-500.0,0.00017423,2]
[403630064,1769431845145,-500.0,0.00017423,2]
[403630066,1769431845155,-1000.0,0.00017432,2]
[403630068,1769431845163,-1000.0,0.00017432,2]
[403630069,1769431845172,-1024.12337824,0.00017432,2]
[403630071,1769431845181,-1000.0,0.00017432,2]
[403630073,1769431845190,-1000.0,0.00017432,2]
[403630075,1769431845198,-575.87084624,0.00017436,2]
[403630077,1769431845208,-11680.82954706,0.00017466,2]
[403630079,1769431845218,-500.0,0.00017499,2]
[403630081,1769431845227,-500.0,0.00017499,2]
[403630083,1769431845237,-500.0,0.00017499,2]
[403630084,1769431845246,-500.0,0.00017499,2]
[403630086,1769431845255,-500.0,0.00017499,2]
[403630088,1769431845265,-500.0,0.00017499,2]
[403630090,1769431845274,-500.0,0.00017499,2]
[403630091,1769431845284,-500.0,0.00017499,2]
[403630094,1769431845294,-500.0,0.00017499,2]
[403630095,1769431845304,-1000.0,0.00017534,2]
[403630097,1769431845313,-269.3,0.00017538,2]
[403630099,1769431845322,-500.0,0.00017612,2]
[403630101,1769431845331,-1221.82594854,0.0001764,2]
[403630102,1769431845340,-885.86649465,0.00017647,2]
[403630104,1769431845350,-151.0,0.00017647,2]
[403630106,1769431845362,-181.08010149,0.00017647,2]
[403630108,1769431845371,-276.44,0.00017649,2]
[403630110,1769431845380,-208.55,0.00017696,2]
[403630112,1769431845389,-152.16,0.00017696,2]
[403630114,1769431845399,-500.0,0.00017699,2]
[403630116,1769431845408,-500.0,0.00017699,2]
[403630118,1769431845418,-500.0,0.00017699,2]
[403630119,1769431845427,-150.0,0.00017699,2]
[403630121,1769431845439,-500.0,0.00017699,2]
[403630123,1769431845448,-150.0,0.00017699,2]
[403630125,1769431845457,-500.0,0.00017699,2]
[403630127,1769431845466,-500.0,0.00017699,2]
[403630129,1769431845476,-500.0,0.00017699,2]
[403630131,1769431845485,-500.0,0.00017699,2]
[403630132,1769431845495,-150.0,0.00017699,2]
[403630134,1769431845504,-150.0,0.00017699,2]
[403630136,1769431845515,-500.0,0.00017699,2]
[403630138,1769431845524,-500.0,0.00017754,2]
[403630140,1769431845533,-500.0,0.00017754,2]
[403630141,1769431845542,-500.0,0.00017754,2]
[403630143,1769431845551,-150.0,0.00017754,2]
[403630145,1769431845560,-512.1375932,0.00017754,2]
[403630147,1769431845570,-500.0,0.00017754,2]
[403630149,1769431845580,-500.0,0.00017754,2]
[403630151,1769431845590,-500.0,0.00017754,2]
[403630153,1769431845600,-500.0,0.00017754,2]
[403630155,1769431845609,-150.0,0.00017754,2]
[403630157,1769431845618,-500.0,0.00017754,2]
[403630159,1769431845627,-500.0,0.00017792,2]
[403630161,1769431845637,-500.0,0.00017792,2]
[403630163,1769431845647,-500.0,0.00017792,2]
[403630164,1769431845656,-500.0,0.00017792,2]
[403630166,1769431845666,-500.0,0.00017792,2]
[403630168,1769431845675,-500.0,0.00017792,2]
[403630170,1769431845685,-500.0,0.00017792,2]
[403630172,1769431845694,-500.0,0.00017792,2]
[403630174,1769431845703,-150.0,0.000178,2]
[403630176,1769431845712,-150.0,0.00017808,2]
[403630178,1769431845721,-1000.0,0.00017808,2]
[403630180,1769431845731,-500.0,0.00017809,2]
[403630182,1769431845740,-500.0,0.00017809,2]
[403630184,1769431845749,-411.30933942,0.00017809,2]
[403630185,1769431845758,-150.0,0.00017809,2]
[403630187,1769431845767,-500.0,0.00017809,2]
[403630189,1769431845776,-500.0,0.00017809,2]
[403630191,1769431845786,-500.0,0.00017809,2]
[403630193,1769431845795,-500.0,0.00017809,2]
[403630195,1769431845804,-150.0,0.00017809,2]
[403630197,1769431845814,-500.0,0.00017809,2]
[403630199,1769431845823,-8081.75591382,0.0001782,2]
[403630200,1769431845832,-2000.0,0.0001782,2]
[403630202,1769431845841,-2000.0,0.0001782,2]
[403630204,1769431845850,-2000.0,0.0001782,2]
[403630206,1769431845859,-2000.0,0.0001782,2]
[403630208,1769431845868,-2837.856,0.00017837,2]
[403630210,1769431845877,-182.779,0.00017837,2]
[403630212,1769431845886,-166.66,0.00017838,2]
[403630214,1769431845895,-1000.0,0.00017845,2]
[403630217,1769431845905,-200.0,0.00017856,2]
[403630219,1769431845914,-773.41343932,0.00017856,2]
[403630221,1769431845923,-1364.39298258,0.00017856,2]
[403630222,1769431845932,-2041.05030296,0.00017856,2]
[403630224,1769431845941,-2761.605,0.00017856,2]
[403630226,1769431845950,-150.0,0.00017863,2]
[403630229,1769431845959,-500.0,0.00017863,2]
[403630231,1769431845968,-500.0,0.00017863,2]
[403630233,1769431845976,-150.0,0.00017863,2]
[403630235,1769431845985,-500.0,0.00017863,2]
[403630237,1769431845994,-500.0,0.00017863,2]
[403630238,1769431846003,-500.0,0.00017863,2]
[403630240,1769431846012,-500.0,0.00017863,2]
[403630242,1769431846021,-500.0,0.00017863,2]
[403630244,1769431846030,-500.0,0.00017899,2]
[403630246,1769431846039,-500.0,0.00017899,2]
[403630248,1769431846048,-10000.0,0.000179,2]
[403630250,1769431846057,-648.9117737,0.000179,2]
[403630252,1769431846066,-575.87084624,0.000179,2]
[403630254,1769431846075,-657.48098806,0.000179,2]
[403630255,1769431846084,-11680.82954706,0.000179,2]
[403630257,1769431846093,-9248.0,0.000179,2]
[403630259,1769431846102,-151.0,0.00017914,2]
[403630261,1769431846111,-150.0,0.00017918,2]
[403630263,1769431846121,-500.0,0.00017918,2]
[403630265,1769431846131,-500.0,0.00017918,2]
[403630267,1769431846139,-500.0,0.00017918,2]
[403630269,1769431846148,-505.16925111,0.00017918,2]
[403630271,1769431846158,-500.0,0.00017918,2]
[403630272,1769431846167,-500.0,0.00017918,2]
[403630274,1769431846176,-500.0,0.00017918,2]
[403630276,1769431846185,-212.27706607,0.00017972,2]
[403630278,1769431846194,-500.0,0.00017973,2]
[403630280,1769431846203,-500.0,0.00017973,2]
[403630282,1769431846212,-500.0,0.00017973,2]
[403630284,1769431846222,-500.0,0.00017973,2]
[403630286,1769431846231,-500.0,0.00017973,2]
[403630288,1769431846240,-500.0,0.00017973,2]
[403630290,1769431846249,-150.0,0.00017973,2]
[403630291,1769431846258,-150.0,0.00017973,2]
[403630293,1769431846267,-1214.55464452,0.0001798,2]
[403630295,1769431846276,-1500.0,0.0001798,2]
[403630297,1769431846285,-1500.0,0.0001798,2]
[403630299,1769431846294,-251.55597264,0.0001798,2]
[403630301,1769431846304,-191.28594319,0.00017989,2]
[403630303,1769431846313,-500.0,0.00017989,2]
[403630305,1769431846322,-500.0,0.00017989,2]
[403630306,1769431846331,-500.0,0.00017989,2]
[403630308,1769431846340,-500.0,0.00017989,2]
[403630310,1769431846349,-500.0,0.00017989,2]
[403630312,1769431846358,-484.6556127,0.00017989,2]
[403630314,1769431846366,-511.68014274,0.00017989,2]
[403630316,1769431846375,-500.0,0.00017989,2]
[403630318,1769431846385,-500.0,0.00017989,2]
[403630320,1769431846394,-191.28594319,0.0001799,2]
[403630322,1769431846404,-191.28594319,0.0001799,2]
[403630323,1769431846413,-151.0,0.00017996,2]
[403630325,1769431846422,-500.0,0.00017997,2]
[403630327,1769431846431,-500.0,0.00017997,2]
[403630329,1769431846443,-500.0,0.00017997,2]
[403630330,1769431846452,-151.0,0.00017997,2]
[403630331,1769431846461,-530.58675413,0.00017998,2]
[403630332,1769431846471,-500.0,0.00017998,2]
[403630333,1769431846480,-500.0,0.00017998,2]
[403630334,1769431846490,-500.0,0.00017998,2]
[403630335,1769431846499,-500.0,0.00017998,2]
[403630336,1769431846509,-500.0,0.00017998,2]
[403630337,1769431846518,-500.0,0.00017998,2]
[403630338,1769431846528,-500.0,0.00017998,2]
[403630339,1769431846537,-554.90775112,0.00017998,2]
[403630340,1769431846547,-500.0,0.00017998,2]
[403630341,1769431846556,-500.0,0.00017998,2]
[403630342,1769431846566,-500.0,0.00017998,2]
[403630343,1769431846575,-500.0,0.00017998,2]
[403630344,1769431846584,-500.0,0.00017998,2]
[403630345,1769431846594,-500.0,0.00017998,2]
[403630346,1769431846603,-500.0,0.00017998,2]
[403630347,1769431846612,-649.14983305,0.00017998,2]
[403630348,1769431846622,-500.0,0.00017998,2]
[403630350,1769431846630,-500.0,0.00017998,2]
[403630351,1769431846639,-500.0,0.00017998,2]
[403630353,1769431846648,-500.0,0.00017998,2]
[403630355,1769431846658,-500.0,0.00017998,2]
[403630357,1769431846667,-500.0,0.00017998,2]
[403630359,1769431846676,-500.0,0.00017998,2]
[403630361,1769431846687,-500.0,0.00017998,2]
[403630363,1769431846696,-500.0,0.00017998,2]
[403630365,1769431846705,-500.0,0.00017998,2]
[403630367,1769431846714,-500.0,0.00017998,2]
[403630369,1769431846724,-500.0,0.00017998,2]
[403630371,1769431846733,-500.0,0.00017998,2]
[403630373,1769431846742,-500.0,0.00017998,2]
[403630375,1769431846752,-500.0,0.00017998,2]
[403630377,1769431846761,-500.0,0.00017998,2]
[403630379,1769431846770,-693670.1235859,0.00017999,2]
[403630381,1769431846784,-1135.16674727,0.00017999,5]
[403630383,1769431846793,-4304.7530923,0.00017999,2]
[403630385,1769431846802,-300.0,0.00017999,2]
[403630388,1769431846812,-500.0,0.00017999,2]
[403630390,1769431846821,-500.0,0.00017999,2]
[403630392,1769431846830,-500.0,0.00017999,2]
[403630395,1769431846839,-500.0,0.00017999,2]
[403630397,1769431846848,-500.0,0.00017999,2]
[403630399,1769431846858,-500.0,0.00017999,2]
[403630401,1769431846867,-500.0,0.00017999,2]
[403630403,1769431846876,-500.0,0.00017999,2]
[403630405,1769431846885,-410.87321222,0.00017999,2]
[403630407,1769431846894,-500.0,0.00017999,2]
[403630409,1769431846903,-201769.7787475,0.00017999,2]
[403630411,1769431846912,-623.10983885,0.00017999,2]
[403630413,1769431846921,-620.90734351,0.00017999,2]
[403630415,1769431846931,-500.0,0.00017999,2]